[Event "Titled Tuesday Blitz November 22 Early 2022"]
[White "Bluebaum, Matthias"]
[Black "Boros, Denes"]
[WhiteFideId "24651516"]
[BlackFideId "722340"]
[WhiteElo "2633"]
[BlackElo "2464"]
[Result "1-0"]
[Round "04"]
[TimeControl "180+1"]
[Date "2022.11.22"]
[WhiteClock "0:00:06"]
[BlackClock "0:00:04"]

1. d4 {[%clk 0:03:00]}  b6 {[%clk 0:03:00]} 2. c4 {[%clk 0:03:00]}  Bb7 {[%clk 0:03:00]} 3. Nc3 {[%clk 0:03:01]}  d6 {[%clk 0:03:01]} 4. e4 {[%clk 0:03:01]}  Nd7 {[%clk 0:02:59]} 5. Nf3 {[%clk 0:03:01]}  e5 {[%clk 0:03:00]} 6. Be2 {[%clk 0:02:58]}  Ngf6 {[%clk 0:02:58]} 7. Qc2 {[%clk 0:02:58]}  Be7 {[%clk 0:02:55]} 8. O-O {[%clk 0:02:58]}  O-O {[%clk 0:02:54]} 9. h3 {[%clk 0:02:58]}  exd4 {[%clk 0:02:53]} 10. Nxd4 {[%clk 0:02:59]}  Re8 {[%clk 0:02:53]} 11. Be3 {[%clk 0:02:55]}  Nc5 {[%clk 0:02:46]} 12. f3 {[%clk 0:02:55]}  Nh5 {[%clk 0:02:46]} 13. b4 {[%clk 0:02:44]}  Ne6 {[%clk 0:02:36]} 14. Nxe6 {[%clk 0:02:24]}  fxe6 {[%clk 0:02:37]} 15. Rfd1 {[%clk 0:02:24]}  Bg5 {[%clk 0:02:32]} 16. Qd2 {[%clk 0:02:19]}  Bxe3+ {[%clk 0:02:23]} 17. Qxe3 {[%clk 0:02:20]}  Qf6 {[%clk 0:02:17]} 18. c5 {[%clk 0:02:17]}  Nf4 {[%clk 0:02:08]} 19. Bf1 {[%clk 0:02:05]}  Rad8 {[%clk 0:01:38]} 20. cxd6 {[%clk 0:02:02]}  cxd6 {[%clk 0:01:38]} 21. Kh2 {[%clk 0:02:00]}  Ng6 {[%clk 0:01:28]} 22. Rac1 {[%clk 0:01:56]}  d5 {[%clk 0:01:26]} 23. exd5 {[%clk 0:01:54]}  exd5 {[%clk 0:01:23]} 24. Qd4 {[%clk 0:01:55]}  Qd6+ {[%clk 0:01:10]} 25. Kh1 {[%clk 0:01:55]}  Qg3 {[%clk 0:01:01]} 26. Ne2 {[%clk 0:01:46]}  Qd6 {[%clk 0:00:55]} 27. a3 {[%clk 0:01:43]}  Ba6 {[%clk 0:00:50]} 28. Nc3 {[%clk 0:01:34]}  Bxf1 {[%clk 0:00:50]} 29. Rxf1 {[%clk 0:01:35]}  Qg3 {[%clk 0:00:49]} 30. Qg4 {[%clk 0:01:34]}  Qxg4 {[%clk 0:00:38]} 31. hxg4 {[%clk 0:01:35]}  Ne5 {[%clk 0:00:37]} 32. Rfd1 {[%clk 0:01:30]}  Nc4 {[%clk 0:00:34]} 33. Nxd5 {[%clk 0:01:24]}  Nxa3 {[%clk 0:00:34]} 34. Ra1 {[%clk 0:00:59]}  Nb5 {[%clk 0:00:33]} 35. Ne7+ {[%clk 0:00:52]}  Kf8 {[%clk 0:00:30]} 36. Nc6 {[%clk 0:00:53]}  Rxd1+ {[%clk 0:00:27]} 37. Rxd1 {[%clk 0:00:54]}  Re6 {[%clk 0:00:23]} 38. Rd8+ {[%clk 0:00:52]}  Kf7 {[%clk 0:00:23]} 39. Rc8 {[%clk 0:00:43]}  Kg6 {[%clk 0:00:23]} 40. f4 {[%clk 0:00:40]}  Re2 {[%clk 0:00:20]} 41. Ne5+ {[%clk 0:00:40]}  Kf6 {[%clk 0:00:19]} 42. Rc6+ {[%clk 0:00:38]}  Ke7 {[%clk 0:00:19]} 43. Rc8 {[%clk 0:00:31]}  g5 {[%clk 0:00:18]} 44. g3 {[%clk 0:00:30]}  h6 {[%clk 0:00:18]} 45. Rh8 {[%clk 0:00:30]}  Nc3 {[%clk 0:00:14]} 46. Rxh6 {[%clk 0:00:25]}  Ne4 {[%clk 0:00:14]} 47. Kg1 {[%clk 0:00:19]}  Nxg3 {[%clk 0:00:12]} 48. Nc6+ {[%clk 0:00:20]}  Kf7 {[%clk 0:00:12]} 49. fxg5 {[%clk 0:00:20]}  Re4 {[%clk 0:00:10]} 50. b5 {[%clk 0:00:18]}  Kg7 {[%clk 0:00:10]} 51. Kg2 {[%clk 0:00:16]}  Ne2 {[%clk 0:00:09]} 52. Kf3 {[%clk 0:00:16]}  Re8 {[%clk 0:00:09]} 53. Rd6 {[%clk 0:00:16]}  Nc3 {[%clk 0:00:09]} 54. Nxa7 {[%clk 0:00:16]}  Re5 {[%clk 0:00:08]} 55. Rxb6 {[%clk 0:00:15]}  Nd5 {[%clk 0:00:07]} 56. Rb7+ {[%clk 0:00:15]}  Kg6 {[%clk 0:00:08]} 57. Nc6 {[%clk 0:00:14]}  Re3+ {[%clk 0:00:08]} 58. Kf2 {[%clk 0:00:15]}  Rb3 {[%clk 0:00:08]} 59. Rd7 {[%clk 0:00:12]}  Nf4 {[%clk 0:00:08]} 60. Ne5+ {[%clk 0:00:09]}  Kxg5 {[%clk 0:00:07]} 61. Nf3+ {[%clk 0:00:09]}  Kxg4 {[%clk 0:00:06]} 62. Rg7+ {[%clk 0:00:10]}  Kh5 {[%clk 0:00:07]} 63. Nd4 {[%clk 0:00:07]}  Rb4 {[%clk 0:00:05]} 64. Rd7 {[%clk 0:00:06]}  Kg4 {[%clk 0:00:05]} 65. Ke3 {[%clk 0:00:05]}  Ne6 {[%clk 0:00:03]} 66. Nxe6 {[%clk 0:00:05]}  Rb3+ {[%clk 0:00:03]} 67. Ke4 {[%clk 0:00:04]}  Rxb5 {[%clk 0:00:04]} 68. Rg7+ {[%clk 0:00:05]}  Kh3 {[%clk 0:00:04]} 69. Nd4 {[%clk 0:00:05]}  Rb4 {[%clk 0:00:02]} 70. Rg8 {[%clk 0:00:06]}  Kh2 {[%clk 0:00:03]} 71. Ke3 {[%clk 0:00:06]}  Kh3 {[%clk 0:00:03]} 72. Kf3 {[%clk 0:00:06]}  Rb3+ {[%clk 0:00:03]} 73. Kf4 {[%clk 0:00:06]}  Kh2 {[%clk 0:00:03]} 74. Nf3+ {[%clk 0:00:06]}  Kh1 {[%clk 0:00:04]} 75. Rg1# {[%clk 0:00:06]} 1-0


[Site "https://www.chess.com"]

[Event "Titled Tuesday Blitz November 22 Early 2022"]
[White "Boraso, Alessio"]
[Black "Adithya A Chullikkad"]
[WhiteFideId "848077"]
[BlackFideId "45078734"]
[WhiteElo "2286"]
[BlackElo "2106"]
[Result "1-0"]
[Round "04"]
[TimeControl "180+1"]
[Date "2022.11.23"]
[WhiteClock "0:00:07"]
[BlackClock "0:00:02"]

1. d4 {[%clk 0:03:00]}  Nf6 {[%clk 0:02:54]} 2. c4 {[%clk 0:03:01]}  c5 {[%clk 0:02:51]} 3. d5 {[%clk 0:03:01]}  b5 {[%clk 0:02:51]} 4. cxb5 {[%clk 0:03:00]}  a5 {[%clk 0:02:50]} 5. Nc3 {[%clk 0:02:41]}  d6 {[%clk 0:02:48]} 6. e4 {[%clk 0:02:36]}  g6 {[%clk 0:02:40]} 7. h3 {[%clk 0:02:31]}  Bg7 {[%clk 0:02:39]} 8. Nf3 {[%clk 0:02:32]}  Nbd7 {[%clk 0:02:21]} 9. Bf4 {[%clk 0:02:31]}  Nb6 {[%clk 0:02:07]} 10. Nd2 {[%clk 0:02:25]}  Nfd7 {[%clk 0:01:57]} 11. Be2 {[%clk 0:02:17]}  O-O {[%clk 0:01:49]} 12. O-O {[%clk 0:02:17]}  h5 {[%clk 0:01:27]} 13. a4 {[%clk 0:02:04]}  Nf6 {[%clk 0:01:16]} 14. Ra3 {[%clk 0:02:01]}  Bd7 {[%clk 0:01:09]} 15. Bh2 {[%clk 0:01:46]}  Be8 {[%clk 0:01:00]} 16. f4 {[%clk 0:01:43]}  Nfd7 {[%clk 0:00:59]} 17. Kh1 {[%clk 0:01:43]}  f6 {[%clk 0:00:56]} 18. f5 {[%clk 0:01:34]}  g5 {[%clk 0:00:56]} 19. Bxh5 {[%clk 0:01:32]}  Ne5 {[%clk 0:00:47]} 20. Be2 {[%clk 0:01:27]}  Kf7 {[%clk 0:00:36]} 21. Bxe5 {[%clk 0:01:18]}  fxe5 {[%clk 0:00:30]} 22. Nf3 {[%clk 0:01:06]}  Bf6 {[%clk 0:00:30]} 23. Nh2 {[%clk 0:01:04]}  Rh8 {[%clk 0:00:28]} 24. Nb1 {[%clk 0:00:56]}  Kg7 {[%clk 0:00:28]} 25. Rg3 {[%clk 0:00:55]}  Kh6 {[%clk 0:00:16]} 26. b3 {[%clk 0:00:53]}  Bd7 {[%clk 0:00:17]} 27. Nd2 {[%clk 0:00:49]}  Qc7 {[%clk 0:00:17]} 28. Ndf3 {[%clk 0:00:48]}  Rag8 {[%clk 0:00:18]} 29. Qd2 {[%clk 0:00:48]}  Rh7 {[%clk 0:00:16]} 30. Kg1 {[%clk 0:00:38]}  Rhg7 {[%clk 0:00:14]} 31. Rg4 {[%clk 0:00:28]}  Kh7 {[%clk 0:00:14]} 32. Kf2 {[%clk 0:00:17]}  Be8 {[%clk 0:00:14]} 33. Rh1 {[%clk 0:00:17]}  Bh5 {[%clk 0:00:13]} 34. Ne1 {[%clk 0:00:18]}  Bxg4 {[%clk 0:00:13]} 35. hxg4 {[%clk 0:00:19]}  Kh8 {[%clk 0:00:12]} 36. Nf1+ {[%clk 0:00:12]}  Rh7 {[%clk 0:00:12]} 37. Rh5 {[%clk 0:00:12]}  Rxh5 {[%clk 0:00:12]} 38. gxh5 {[%clk 0:00:13]}  Kg7 {[%clk 0:00:13]} 39. g4 {[%clk 0:00:13]}  Kh6 {[%clk 0:00:13]} 40. Ne3 {[%clk 0:00:11]}  Rb8 {[%clk 0:00:13]} 41. N1c2 {[%clk 0:00:11]}  Rc8 {[%clk 0:00:14]} 42. Na3 {[%clk 0:00:12]}  Rb8 {[%clk 0:00:14]} 43. Nac4 {[%clk 0:00:13]}  Rc8 {[%clk 0:00:15]} 44. Bf1 {[%clk 0:00:10]}  Rb8 {[%clk 0:00:15]} 45. Kf3 {[%clk 0:00:10]}  Rb7 {[%clk 0:00:16]} 46. Kf2 {[%clk 0:00:10]}  Rb8 {[%clk 0:00:16]} 47. Qxa5 {[%clk 0:00:09]}  Bg7 {[%clk 0:00:11]} 48. Be2 {[%clk 0:00:07]}  Rb7 {[%clk 0:00:10]} 49. Qd2 {[%clk 0:00:08]}  Bf6 {[%clk 0:00:08]} 50. Ng2 {[%clk 0:00:08]}  Nc8 {[%clk 0:00:08]} 51. Ne1 {[%clk 0:00:09]}  Ra7 {[%clk 0:00:08]} 52. Nf3 {[%clk 0:00:09]}  Nb6 {[%clk 0:00:08]} 53. Ne3 {[%clk 0:00:06]}  Nc8 {[%clk 0:00:05]} 54. Bc4 {[%clk 0:00:07]}  Qa5 {[%clk 0:00:04]} 55. Qxa5 {[%clk 0:00:07]}  Rxa5 {[%clk 0:00:05]} 56. Nd2 {[%clk 0:00:07]}  Nb6 {[%clk 0:00:05]} 57. Ke2 {[%clk 0:00:07]}  Ra7 {[%clk 0:00:05]} 58. Kd3 {[%clk 0:00:07]}  e6 {[%clk 0:00:05]} 59. fxe6 {[%clk 0:00:05]}  Kh7 {[%clk 0:00:04]} 60. Nf5 {[%clk 0:00:05]}  Bd8 {[%clk 0:00:04]} 61. Nxd6 {[%clk 0:00:05]}  Be7 {[%clk 0:00:03]} 62. Nf7 {[%clk 0:00:05]}  Nc8 {[%clk 0:00:03]} 63. Nxe5 {[%clk 0:00:05]}  Kg7 {[%clk 0:00:03]} 64. Nc6 {[%clk 0:00:05]}  Rc7 {[%clk 0:00:03]} 65. Nf3 {[%clk 0:00:05]}  Bd6 {[%clk 0:00:03]} 66. e5 {[%clk 0:00:04]}  Kh7 {[%clk 0:00:03]} 67. Ke4 {[%clk 0:00:05]}  Bxe5 {[%clk 0:00:03]} 68. Ncxe5 {[%clk 0:00:05]}  Nd6+ {[%clk 0:00:03]} 69. Kd3 {[%clk 0:00:04]}  Nb7 {[%clk 0:00:03]} 70. Nxg5+ {[%clk 0:00:05]}  Kh6 {[%clk 0:00:03]} 71. Ngf7+ {[%clk 0:00:05]}  Kh7 {[%clk 0:00:03]} 72. g5 {[%clk 0:00:06]}  Kg7 {[%clk 0:00:03]} 73. Ke4 {[%clk 0:00:05]}  Kh7 {[%clk 0:00:03]} 74. Kf5 {[%clk 0:00:06]}  Kg7 {[%clk 0:00:03]} 75. g6 {[%clk 0:00:06]}  Rxf7+ {[%clk 0:00:01]} 76. exf7 {[%clk 0:00:06]}  Nd6+ {[%clk 0:00:01]} 77. Kg5 {[%clk 0:00:06]}  Nxf7+ {[%clk 0:00:01]} 78. Nxf7 {[%clk 0:00:05]}  Kf8 {[%clk 0:00:02]} 79. Bd3 {[%clk 0:00:06]}  Kg7 {[%clk 0:00:02]} 80. h6+ {[%clk 0:00:06]}  Kg8 {[%clk 0:00:02]} 81. Kf6 {[%clk 0:00:06]}  c4 {[%clk 0:00:02]} 82. h7+ {[%clk 0:00:06]}  Kf8 {[%clk 0:00:02]} 83. h8=Q# {[%clk 0:00:07]} 1-0


[Site "https://www.chess.com"]

[Event "Titled Tuesday Blitz November 22 Early 2022"]
[White "Buscar, Michael"]
[Black "Padmini, Rout"]
[WhiteFideId "2603616"]
[BlackFideId "5029295"]
[WhiteElo "2010"]
[BlackElo "2296"]
[Result "0-1"]
[Round "04"]
[TimeControl "180+1"]
[Date "2022.11.23"]
[WhiteClock "0:00:03"]
[BlackClock "0:00:51"]

1. d4 {[%clk 0:03:00]}  Nf6 {[%clk 0:02:59]} 2. Nf3 {[%clk 0:02:59]}  g6 {[%clk 0:02:58]} 3. Nc3 {[%clk 0:02:59]}  d5 {[%clk 0:02:57]} 4. Bf4 {[%clk 0:02:58]}  Bg7 {[%clk 0:02:57]} 5. Nb5 {[%clk 0:02:56]}  Na6 {[%clk 0:02:57]} 6. e3 {[%clk 0:02:53]}  c6 {[%clk 0:02:56]} 7. Nc3 {[%clk 0:02:46]}  Qb6 {[%clk 0:02:56]} 8. Rb1 {[%clk 0:02:41]}  O-O {[%clk 0:02:55]} 9. Be2 {[%clk 0:02:41]}  Nb8 {[%clk 0:02:40]} 10. Ne5 {[%clk 0:02:31]}  Nbd7 {[%clk 0:02:40]} 11. O-O {[%clk 0:02:26]}  Nxe5 {[%clk 0:02:40]} 12. Bxe5 {[%clk 0:02:23]}  Bf5 {[%clk 0:02:39]} 13. Bd3 {[%clk 0:02:18]}  Bxd3 {[%clk 0:02:34]} 14. Qxd3 {[%clk 0:02:11]}  a5 {[%clk 0:02:34]} 15. Na4 {[%clk 0:02:07]}  Qa6 {[%clk 0:02:34]} 16. Nc5 {[%clk 0:02:04]}  Qxd3 {[%clk 0:02:33]} 17. cxd3 {[%clk 0:01:56]}  Ra7 {[%clk 0:02:23]} 18. b4 {[%clk 0:01:46]}  b6 {[%clk 0:02:17]} 19. Na4 {[%clk 0:01:24]}  b5 {[%clk 0:02:17]} 20. Nc5 {[%clk 0:01:19]}  axb4 {[%clk 0:02:17]} 21. Rb2 {[%clk 0:01:16]}  Rfa8 {[%clk 0:02:16]} 22. Ra1 {[%clk 0:01:07]}  Ne8 {[%clk 0:02:13]} 23. Bxg7 {[%clk 0:00:57]}  Kxg7 {[%clk 0:02:14]} 24. g3 {[%clk 0:00:57]}  Nd6 {[%clk 0:01:39]} 25. Nb3 {[%clk 0:00:57]}  Nb7 {[%clk 0:01:33]} 26. Nc1 {[%clk 0:00:56]}  Ra4 {[%clk 0:01:31]} 27. Rab1 {[%clk 0:00:55]}  Kf6 {[%clk 0:01:13]} 28. Rxb4 {[%clk 0:00:55]}  Rxb4 {[%clk 0:01:14]} 29. Rxb4 {[%clk 0:00:56]}  e5 {[%clk 0:01:14]} 30. dxe5+ {[%clk 0:00:47]}  Kxe5 {[%clk 0:01:15]} 31. Kg2 {[%clk 0:00:45]}  Ra5 {[%clk 0:01:10]} 32. d4+ {[%clk 0:00:38]}  Ke6 {[%clk 0:01:09]} 33. Rb2 {[%clk 0:00:39]}  Nd6 {[%clk 0:01:08]} 34. Nd3 {[%clk 0:00:35]}  Nc4 {[%clk 0:01:08]} 35. Re2 {[%clk 0:00:35]}  Ra3 {[%clk 0:01:06]} 36. Nc5+ {[%clk 0:00:25]}  Kd6 {[%clk 0:01:06]} 37. e4 {[%clk 0:00:26]}  dxe4 {[%clk 0:01:06]} 38. Nxe4+ {[%clk 0:00:24]}  Kd5 {[%clk 0:01:06]} 39. Ng5 {[%clk 0:00:24]}  f5 {[%clk 0:01:04]} 40. Nxh7 {[%clk 0:00:20]}  Kxd4 {[%clk 0:01:03]} 41. Nf8 {[%clk 0:00:20]}  g5 {[%clk 0:01:02]} 42. Ne6+ {[%clk 0:00:18]}  Kd3 {[%clk 0:01:02]} 43. Kf1 {[%clk 0:00:13]}  g4 {[%clk 0:01:02]} 44. Nf4+ {[%clk 0:00:08]}  Kd4 {[%clk 0:01:01]} 45. Ne6+ {[%clk 0:00:08]}  Kd5 {[%clk 0:01:00]} 46. Nf4+ {[%clk 0:00:07]}  Kd6 {[%clk 0:01:00]} 47. Re6+ {[%clk 0:00:06]}  Kd7 {[%clk 0:01:00]} 48. Re2 {[%clk 0:00:07]}  b4 {[%clk 0:00:59]} 49. Nh5 {[%clk 0:00:04]}  c5 {[%clk 0:00:57]} 50. Ng7 {[%clk 0:00:04]}  Nd6 {[%clk 0:00:57]} 51. Rd2 {[%clk 0:00:04]}  Kc6 {[%clk 0:00:56]} 52. Ne6 {[%clk 0:00:04]}  c4 {[%clk 0:00:55]} 53. Kg2 {[%clk 0:00:03]}  c3 {[%clk 0:00:55]} 54. Rc2 {[%clk 0:00:03]}  Kd5 {[%clk 0:00:53]} 55. Nf4+ {[%clk 0:00:02]}  Kc4 {[%clk 0:00:53]} 56. f3 {[%clk 0:00:03]}  b3 {[%clk 0:00:52]} 57. axb3+ {[%clk 0:00:03]}  Rxb3 {[%clk 0:00:53]} 58. Ne2 {[%clk 0:00:02]}  Nb5 {[%clk 0:00:52]} 59. fxg4 {[%clk 0:00:02]}  fxg4 {[%clk 0:00:52]} 60. h4 {[%clk 0:00:02]}  Nd4 {[%clk 0:00:51]} 61. Nxd4 {[%clk 0:00:02]}  Kxd4 {[%clk 0:00:51]} 62. Kf1 {[%clk 0:00:02]}  Rb2 {[%clk 0:00:50]} 63. Rc1 {[%clk 0:00:02]}  Kd3 {[%clk 0:00:50]} 64. Rd1+ {[%clk 0:00:02]}  Rd2 {[%clk 0:00:50]} 65. Re1 {[%clk 0:00:01]}  c2 {[%clk 0:00:50]} 66. h5 {[%clk 0:00:02]}  Rd1 {[%clk 0:00:50]} 67. h6 {[%clk 0:00:02]}  Rxe1+ {[%clk 0:00:50]} 68. Kxe1 {[%clk 0:00:03]}  c1=Q+ {[%clk 0:00:51]} 0-1


[Site "https://www.chess.com"]

[Event "Titled Tuesday Blitz November 22 Early 2022"]
[White "Caruana, Fabiano"]
[Black "Garcia Ramos, Daniel"]
[WhiteFideId "2020009"]
[BlackFideId "32010311"]
[WhiteElo "2847"]
[BlackElo "2357"]
[Result "1-0"]
[Round "04"]
[TimeControl "180+1"]
[Date "2022.11.22"]
[WhiteClock "0:01:50"]
[BlackClock "0:00:15"]

1. b3 {[%clk 0:03:00]}  e5 {[%clk 0:02:58]} 2. Bb2 {[%clk 0:03:00]}  d6 {[%clk 0:02:59]} 3. g3 {[%clk 0:03:00]}  g6 {[%clk 0:02:59]} 4. Bg2 {[%clk 0:03:00]}  Bg7 {[%clk 0:02:59]} 5. c4 {[%clk 0:02:59]}  Ne7 {[%clk 0:03:00]} 6. Nc3 {[%clk 0:02:59]}  O-O {[%clk 0:03:00]} 7. e3 {[%clk 0:02:59]}  Nbc6 {[%clk 0:02:59]} 8. Nge2 {[%clk 0:02:59]}  Be6 {[%clk 0:02:53]} 9. O-O {[%clk 0:02:59]}  d5 {[%clk 0:02:54]} 10. cxd5 {[%clk 0:02:58]}  Nxd5 {[%clk 0:02:54]} 11. Ne4 {[%clk 0:02:58]}  Qe7 {[%clk 0:02:50]} 12. a3 {[%clk 0:02:57]}  Rfd8 {[%clk 0:02:49]} 13. Qc2 {[%clk 0:02:55]}  f5 {[%clk 0:01:39]} 14. Nc5 {[%clk 0:02:54]}  b6 {[%clk 0:01:36]} 15. Nxe6 {[%clk 0:02:50]}  Qxe6 {[%clk 0:01:37]} 16. Rac1 {[%clk 0:02:48]}  Nce7 {[%clk 0:01:36]} 17. Qc4 {[%clk 0:02:35]}  c6 {[%clk 0:01:22]} 18. Rfd1 {[%clk 0:02:30]}  Qf7 {[%clk 0:01:14]} 19. b4 {[%clk 0:02:23]}  Rac8 {[%clk 0:01:13]} 20. a4 {[%clk 0:02:12]}  h6 {[%clk 0:01:10]} 21. Ba3 {[%clk 0:02:10]}  e4 {[%clk 0:01:03]} 22. d3 {[%clk 0:02:08]}  exd3 {[%clk 0:01:01]} 23. Rxd3 {[%clk 0:02:06]}  Nf6 {[%clk 0:00:25]} 24. Qxf7+ {[%clk 0:02:04]}  Kxf7 {[%clk 0:00:26]} 25. Rxd8 {[%clk 0:02:04]}  Rxd8 {[%clk 0:00:27]} 26. Nd4 {[%clk 0:02:04]}  Ne4 {[%clk 0:00:22]} 27. Bxe4 {[%clk 0:01:48]}  fxe4 {[%clk 0:00:23]} 28. Nxc6 {[%clk 0:01:48]}  Nxc6 {[%clk 0:00:19]} 29. Rxc6 {[%clk 0:01:49]}  Rd1+ {[%clk 0:00:16]} 30. Kg2 {[%clk 0:01:49]}  Ra1 {[%clk 0:00:16]} 31. Rc7+ {[%clk 0:01:49]}  Kg8 {[%clk 0:00:15]} 32. Rxg7+ {[%clk 0:01:50]} 1-0


[Site "https://www.chess.com"]

[Event "Titled Tuesday Blitz November 22 Early 2022"]
[White "Castillo Pena, Patricia Evarista"]
[Black "Fernandez Hernandez, Gerardo"]
[WhiteFideId "6412106"]
[BlackFideId "2207400"]
[WhiteElo "1919"]
[BlackElo "2247"]
[Result "0-1"]
[Round "04"]
[TimeControl "180+1"]
[Date "2022.11.23"]
[WhiteClock "0:00:01"]
[BlackClock "0:00:20"]

1. d4 {[%clk 0:03:00]}  Nf6 {[%clk 0:02:58]} 2. Nf3 {[%clk 0:02:59]}  g6 {[%clk 0:02:58]} 3. Nc3 {[%clk 0:02:52]}  d5 {[%clk 0:02:58]} 4. Bf4 {[%clk 0:02:52]}  Bg7 {[%clk 0:02:55]} 5. e3 {[%clk 0:02:48]}  O-O {[%clk 0:02:54]} 6. Be2 {[%clk 0:02:46]}  c5 {[%clk 0:02:54]} 7. Ne5 {[%clk 0:02:46]}  cxd4 {[%clk 0:02:51]} 8. exd4 {[%clk 0:02:45]}  Nc6 {[%clk 0:02:51]} 9. a3 {[%clk 0:02:42]}  Qb6 {[%clk 0:02:40]} 10. Nxc6 {[%clk 0:02:41]}  bxc6 {[%clk 0:02:35]} 11. Na4 {[%clk 0:02:37]}  Qa5+ {[%clk 0:02:24]} 12. c3 {[%clk 0:02:22]}  Ba6 {[%clk 0:02:14]} 13. Bxa6 {[%clk 0:02:02]}  Qxa6 {[%clk 0:02:15]} 14. Nc5 {[%clk 0:02:02]}  Qc4 {[%clk 0:02:01]} 15. Qe2 {[%clk 0:01:37]}  Qxe2+ {[%clk 0:01:54]} 16. Kxe2 {[%clk 0:01:38]}  Nh5 {[%clk 0:01:51]} 17. Be3 {[%clk 0:01:27]}  e5 {[%clk 0:01:48]} 18. dxe5 {[%clk 0:01:24]}  Bxe5 {[%clk 0:01:44]} 19. Nd7 {[%clk 0:01:20]}  Rfe8 {[%clk 0:01:41]} 20. Kd3 {[%clk 0:01:05]}  f5 {[%clk 0:01:12]} 21. g3 {[%clk 0:00:48]}  Kf7 {[%clk 0:01:07]} 22. f4 {[%clk 0:00:43]}  Bd6 {[%clk 0:01:00]} 23. Bd4 {[%clk 0:00:41]}  Rad8 {[%clk 0:00:50]} 24. Ne5+ {[%clk 0:00:30]}  Bxe5 {[%clk 0:00:50]} 25. Bxe5 {[%clk 0:00:29]}  Nf6 {[%clk 0:00:50]} 26. Rhe1 {[%clk 0:00:27]}  Ne4 {[%clk 0:00:47]} 27. Re2 {[%clk 0:00:25]}  c5 {[%clk 0:00:44]} 28. Rae1 {[%clk 0:00:24]}  Rd7 {[%clk 0:00:45]} 29. Kc2 {[%clk 0:00:21]}  Rb7 {[%clk 0:00:41]} 30. b4 {[%clk 0:00:16]}  Rc8 {[%clk 0:00:31]} 31. Kb3 {[%clk 0:00:11]}  a5 {[%clk 0:00:28]} 32. Re3 {[%clk 0:00:06]}  axb4 {[%clk 0:00:23]} 33. axb4 {[%clk 0:00:03]}  d4 {[%clk 0:00:21]} 34. cxd4 {[%clk 0:00:01]}  Rxb4+ {[%clk 0:00:20]} 0-1


[Site "https://www.chess.com"]

[Event "Titled Tuesday Blitz November 22 Early 2022"]
[White "Ciuffoletti, Paolo"]
[Black "Kriti Mayur Patel"]
[WhiteFideId "807630"]
[BlackFideId "35061780"]
[WhiteElo "2143"]
[BlackElo "1306"]
[Result "1-0"]
[Round "04"]
[TimeControl "180+1"]
[Date "2022.11.23"]
[WhiteClock "0:00:17"]
[BlackClock "0:00:01"]

1. e4 {[%clk 0:03:00]}  e5 {[%clk 0:02:57]} 2. Nf3 {[%clk 0:03:00]}  Nc6 {[%clk 0:02:55]} 3. Bc4 {[%clk 0:03:00]}  Nf6 {[%clk 0:02:56]} 4. d4 {[%clk 0:03:00]}  exd4 {[%clk 0:02:56]} 5. Ng5 {[%clk 0:03:00]}  d5 {[%clk 0:02:54]} 6. exd5 {[%clk 0:03:00]}  Na5 {[%clk 0:02:54]} 7. Qe2+ {[%clk 0:02:58]}  Be7 {[%clk 0:02:54]} 8. d6 {[%clk 0:02:57]}  Qxd6 {[%clk 0:02:52]} 9. Bxf7+ {[%clk 0:02:51]}  Kd8 {[%clk 0:02:39]} 10. Bb3 {[%clk 0:02:47]}  Re8 {[%clk 0:02:27]} 11. Nf7+ {[%clk 0:02:45]}  Kd7 {[%clk 0:02:20]} 12. Nxd6 {[%clk 0:02:41]}  Bxd6 {[%clk 0:02:18]} 13. Be3 {[%clk 0:02:32]}  dxe3 {[%clk 0:02:10]} 14. fxe3 {[%clk 0:02:29]}  Nc6 {[%clk 0:01:58]} 15. Nc3 {[%clk 0:02:22]}  b6 {[%clk 0:01:52]} 16. O-O-O {[%clk 0:02:16]}  Bb7 {[%clk 0:01:51]} 17. Nb5 {[%clk 0:01:57]}  Re5 {[%clk 0:01:44]} 18. Qd2 {[%clk 0:01:36]}  Ne4 {[%clk 0:01:32]} 19. Qe2 {[%clk 0:01:26]}  Rae8 {[%clk 0:01:27]} 20. Qg4+ {[%clk 0:01:21]}  Kd8 {[%clk 0:01:25]} 21. Nxd6 {[%clk 0:01:17]}  cxd6 {[%clk 0:01:20]} 22. Qxg7 {[%clk 0:01:14]}  R5e7 {[%clk 0:01:10]} 23. Qh6 {[%clk 0:00:57]}  Na5 {[%clk 0:01:01]} 24. Ba4 {[%clk 0:00:49]}  Nc6 {[%clk 0:00:57]} 25. Rhf1 {[%clk 0:00:45]}  Kc7 {[%clk 0:00:51]} 26. Rf4 {[%clk 0:00:40]}  Ne5 {[%clk 0:00:49]} 27. Bxe8 {[%clk 0:00:35]}  Rxe8 {[%clk 0:00:49]} 28. Qxh7+ {[%clk 0:00:31]}  Kc8 {[%clk 0:00:39]} 29. Rxe4 {[%clk 0:00:31]}  Bxe4 {[%clk 0:00:37]} 30. Qxe4 {[%clk 0:00:31]}  Kc7 {[%clk 0:00:31]} 31. Qa4 {[%clk 0:00:26]}  Rg8 {[%clk 0:00:27]} 32. g3 {[%clk 0:00:23]}  a5 {[%clk 0:00:22]} 33. Qe4 {[%clk 0:00:22]}  Rg4 {[%clk 0:00:19]} 34. Qd5 {[%clk 0:00:21]}  Rg6 {[%clk 0:00:17]} 35. Rf1 {[%clk 0:00:21]}  Rg7 {[%clk 0:00:14]} 36. Rf6 {[%clk 0:00:20]}  Rd7 {[%clk 0:00:12]} 37. h4 {[%clk 0:00:19]}  Kb8 {[%clk 0:00:10]} 38. h5 {[%clk 0:00:18]}  Ka7 {[%clk 0:00:09]} 39. h6 {[%clk 0:00:18]}  Ka6 {[%clk 0:00:08]} 40. Rxd6 {[%clk 0:00:19]}  Rf7 {[%clk 0:00:01]} 41. Qxe5 {[%clk 0:00:17]} 1-0


[Site "https://www.chess.com"]

[Event "Titled Tuesday Blitz November 22 Early 2022"]
[White "Cnejev, Vladimir-Alexandru"]
[Black "Lauridsen, Jesper Morch"]
[WhiteFideId "1260898"]
[BlackFideId "1401890"]
[WhiteElo "2193"]
[BlackElo "2244"]
[Result "1-0"]
[Round "04"]
[TimeControl "180+1"]
[Date "2022.11.23"]
[WhiteClock "0:02:52"]
[BlackClock "0:02:04"]

1. e4 {[%clk 0:03:00]}  c5 {[%clk 0:02:59]} 2. Nf3 {[%clk 0:03:00]}  d6 {[%clk 0:03:00]} 3. Bb5+ {[%clk 0:03:00]}  Bd7 {[%clk 0:02:59]} 4. Bxd7+ {[%clk 0:03:00]}  Qxd7 {[%clk 0:02:59]} 5. O-O {[%clk 0:03:01]}  Nc6 {[%clk 0:02:59]} 6. c3 {[%clk 0:03:00]}  Nf6 {[%clk 0:02:58]} 7. Re1 {[%clk 0:03:00]}  e6 {[%clk 0:02:58]} 8. d4 {[%clk 0:03:00]}  cxd4 {[%clk 0:02:59]} 9. cxd4 {[%clk 0:03:01]}  d5 {[%clk 0:02:59]} 10. e5 {[%clk 0:03:01]}  Ne4 {[%clk 0:03:00]} 11. Nbd2 {[%clk 0:03:02]}  Nxd2 {[%clk 0:02:59]} 12. Bxd2 {[%clk 0:03:03]}  Be7 {[%clk 0:02:58]} 13. Rc1 {[%clk 0:03:03]}  O-O {[%clk 0:02:57]} 14. Rc3 {[%clk 0:03:04]}  Bb4 {[%clk 0:02:53]} 15. Rxc6 {[%clk 0:03:03]}  Bxd2 {[%clk 0:02:51]} 16. Rd6 {[%clk 0:03:04]}  Qxd6 {[%clk 0:02:38]} 17. exd6 {[%clk 0:03:04]}  Bxe1 {[%clk 0:02:38]} 18. Qxe1 {[%clk 0:03:05]}  Rfd8 {[%clk 0:02:38]} 19. Qb4 {[%clk 0:03:05]}  Rac8 {[%clk 0:02:33]} 20. g3 {[%clk 0:03:03]}  b6 {[%clk 0:02:30]} 21. Ne5 {[%clk 0:02:59]}  f6 {[%clk 0:02:30]} 22. d7 {[%clk 0:02:53]}  Rb8 {[%clk 0:02:04]} 23. Nc6 {[%clk 0:02:52]} 1-0


[Site "https://www.chess.com"]